fUSD/lending_fUSD_20250818
["ID","MTS","AMOUNT","RATE_DAILY","PERIOD"]
[380025552,1755483047300,-669.27956178,0.00013419,2]
[380025553,1755483047309,-1625.92487841,0.00013419,2]
[380025554,1755483047320,-1625.92487841,0.0001342,2]
[380025555,1755483047329,-700.84086923,0.00013423,2]
[380025556,1755483047341,-669.27956178,0.00013423,2]
[380025557,1755483047351,-31182.93653341,0.00013424,2]
[380025558,1755483047360,-5364.33517303,0.00013424,2]
[380025559,1755483047369,-150.0,0.00013425,2]
[380025560,1755483047379,-567367.69679475,0.00013426,2]
[380025561,1755483047388,-579.0,0.00013426,2]
[380025562,1755483047398,-31182.93653341,0.00013428,2]
[380025563,1755483047407,-12813.75878337,0.00013429,2]
[380025564,1755483047416,-18168.30550052,0.0001343,2]
[380025565,1755483047426,-18168.30550052,0.0001343,2]
[380025566,1755483047436,-24378.19377813,0.00013433,2]
[380025567,1755483047445,-80352.82962901,0.00013434,2]
[380025568,1755483047455,-567367.69679475,0.00013434,2]
[380025569,1755483047465,-80352.82962901,0.00013435,2]
[380025570,1755483047475,-24378.19377813,0.00013436,2]
[380025572,1755483047484,-12813.75878337,0.00013437,2]
[380025574,1755483047494,-700.84086923,0.00013439,2]
[380025576,1755483047504,-80352.82962901,0.00013441,2]
[380025578,1755483047513,-2054.30609827,0.00013442,2]
[380025580,1755483047523,-80352.82962901,0.00013442,2]
[380025582,1755483047534,-238.1332906,0.00013442,2]
[380025584,1755483047544,-317.2851934,0.00013442,2]
[380025586,1755483047553,-238.1332906,0.00013443,2]
[380025588,1755483047562,-24378.19377813,0.00013444,2]
[380025590,1755483047573,-579.0,0.00013444,2]
[380025592,1755483047582,-8064.68938925,0.00013445,2]
[380025594,1755483047592,-567367.69679475,0.00013445,2]
[380025596,1755483047601,-700.84086923,0.00013446,2]
[380025598,1755483047611,-1625.92487841,0.00013448,2]
[380025600,1755483047621,-18168.30550052,0.00013453,2]
[380025602,1755483047631,-366.11593967,0.00013457,2]
[380025603,1755483047640,-317.2851934,0.00013457,2]
[380025604,1755483047649,-669.27956178,0.00013458,2]
[380025606,1755483047660,-3704.0,0.00013458,2]
[380025608,1755483047669,-24378.19377813,0.0001346,2]
[380025610,1755483047679,-1123.74731026,0.00013461,2]
[380025612,1755483047688,-317.2851934,0.00013461,2]
[380025614,1755483047697,-2054.30609827,0.00013466,2]
[380025616,1755483047707,-24378.19377813,0.00013466,2]
[380025618,1755483047717,-80352.82962901,0.00013467,2]
[380025620,1755483047726,-669.27956178,0.00013467,2]
[380025622,1755483047736,-317.2851934,0.00013468,2]
[380025624,1755483047745,-567367.69679475,0.00013468,2]
[380025626,1755483047755,-31182.93653341,0.00013469,2]
[380025628,1755483047765,-567367.69679475,0.00013469,2]
[380025630,1755483047774,-2054.30609827,0.0001347,2]
[380025632,1755483047785,-238.1332906,0.00013472,2]
[380025646,1755483047902,-150.0,0.00013473,2]
[380025648,1755483047912,-700.84086923,0.00013473,2]
[380025651,1755483047924,-12813.75878337,0.00013474,2]
[380025653,1755483047933,-24378.19377813,0.00013475,2]
[380025655,1755483047942,-317.2851934,0.00013475,2]
[380025657,1755483047951,-31182.93653341,0.00013476,2]
[380025659,1755483047960,-1625.92487841,0.00013477,2]
[380025661,1755483047971,-579.0,0.00013477,2]
[380025663,1755483047979,-567367.69679475,0.00013477,2]
[380025665,1755483047989,-238.1332906,0.00013479,2]
[380025667,1755483047998,-18168.30550052,0.00013479,2]
[380025669,1755483048008,-31182.93653341,0.0001348,2]
[380025671,1755483048018,-700.84086923,0.00013481,2]
[380025672,1755483048031,-31182.93653341,0.00013481,2]
[380025674,1755483048046,-238.1332906,0.00013482,2]
[380025675,1755483048061,-12813.75878337,0.00013483,2]
[380025677,1755483048085,-18168.30550052,0.00013483,2]
[380025678,1755483048097,-700.84086923,0.00013484,2]
[380025680,1755483048109,-2054.30609827,0.00013486,2]
[380025681,1755483048121,-950.69897856,0.00013488,2]
[380025683,1755483048131,-238.1332906,0.0001349,2]
[380025685,1755483048140,-238.1332906,0.00013492,2]
[380025687,1755483048150,-317.2851934,0.00013492,2]
[380025689,1755483048160,-80352.82962901,0.00013493,2]
[380025691,1755483048169,-18168.30550052,0.00013494,2]
[380025693,1755483048178,-1625.92487841,0.00013494,2]
[380025695,1755483048188,-567367.69679475,0.00013496,2]
[380025697,1755483048198,-150.0,0.00013497,2]
[380025699,1755483048208,-24378.19377813,0.00013497,2]
[380025701,1755483048218,-579.0,0.00013498,2]
[380025704,1755483048227,-2054.30609827,0.00013498,2]
[380025706,1755483048236,-242960.11430772,0.00013498,2]
[380025708,1755483048249,-289.29330142,0.00013498,2]
[380025710,1755483048259,-2684834.14054846,0.00013498,2]
[380025712,1755483048269,-2054.30609827,0.00013499,2]
[380025714,1755483048281,-1000.0,0.000135,2]
[380025716,1755483048291,-150.0,0.00013505,2]
[380025718,1755483048302,-200.0,0.00013534,2]
[380025719,1755483048312,-1000.0,0.00013537,2]
[380025720,1755483048321,-744.58055815,0.00013542,8]
[380025721,1755483048331,-150.0,0.00013562,2]
[380025722,1755483048341,-150.0,0.00013563,2]
[380025723,1755483048352,-579.0,0.00013577,2]
[380025724,1755483048362,-200.0,0.00013587,2]
[380025725,1755483048372,-200.0,0.00013588,2]
[380025726,1755483048382,-500.0,0.00013588,2]
[380025727,1755483048392,-200.0,0.00013588,2]
[380025728,1755483048402,-200.0,0.00013588,2]
[380025729,1755483048412,-200.0,0.00013588,2]
[380025730,1755483048421,-150.0,0.00013589,2]
[380025731,1755483048430,-1126.08,0.000136,4]
[380025732,1755483048441,-1000.0,0.000136,2]
[380025733,1755483048450,-579.0,0.00013625,2]
[380025734,1755483048460,-1000.0,0.0001363,2]
[380025735,1755483048469,-1000.0,0.0001363,2]
[380025736,1755483048478,-1000.0,0.0001363,2]
[380025737,1755483048487,-1000.0,0.0001363,2]
[380025738,1755483048497,-1000.0,0.0001363,2]
[380025739,1755483048506,-1000.0,0.0001363,2]
[380025740,1755483048516,-1000.0,0.0001363,2]
[380025741,1755483048525,-1000.0,0.0001363,2]
[380025742,1755483048537,-1000.0,0.0001363,2]
[380025743,1755483048547,-1000.0,0.0001363,2]
[380025744,1755483048556,-1000.0,0.0001363,2]
[380025745,1755483048566,-1000.0,0.0001363,2]
[380025746,1755483048575,-1000.0,0.0001363,2]
[380025747,1755483048584,-1000.0,0.0001363,2]
[380025748,1755483048594,-1000.0,0.0001363,2]
[380025749,1755483048603,-1000.0,0.0001363,2]
[380025750,1755483048612,-1000.0,0.0001363,2]
[380025751,1755483048621,-1000.0,0.0001363,2]
[380025752,1755483048631,-1000.0,0.0001363,2]
[380025753,1755483048640,-1000.0,0.0001363,2]
[380025754,1755483048650,-1000.0,0.0001363,2]
[380025755,1755483048659,-1000.0,0.0001363,2]
[380025756,1755483048669,-1000.0,0.0001363,2]
[380025757,1755483048678,-1000.0,0.0001363,2]
[380025758,1755483048688,-1000.0,0.0001363,2]
[380025759,1755483048697,-1000.0,0.0001363,2]
[380025760,1755483048707,-1000.0,0.0001363,2]
[380025761,1755483048716,-1000.0,0.0001363,2]
[380025762,1755483048726,-1000.0,0.0001363,2]
[380025763,1755483048735,-1000.0,0.0001363,2]
[380025764,1755483048745,-1000.0,0.0001363,2]
[380025766,1755483048754,-1000.0,0.0001363,2]
[380025767,1755483048763,-1000.0,0.0001363,2]
[380025768,1755483048772,-1000.0,0.0001363,2]
[380025769,1755483048785,-1000.0,0.0001363,2]
[380025770,1755483048795,-1000.0,0.0001363,2]
[380025771,1755483048804,-1000.0,0.0001363,2]
[380025772,1755483048814,-1000.0,0.0001363,2]
[380025773,1755483048823,-1000.0,0.0001363,2]
[380025774,1755483048833,-1000.0,0.0001363,2]
[380025775,1755483048841,-1000.0,0.0001363,2]
[380025776,1755483048851,-1000.0,0.0001363,2]
[380025777,1755483048860,-1000.0,0.0001363,2]
[380025778,1755483048869,-1000.0,0.0001363,2]
[380025779,1755483048878,-1000.0,0.0001363,2]
[380025781,1755483048888,-1000.0,0.0001363,2]
[380025782,1755483048897,-1000.0,0.0001363,2]
[380025784,1755483048907,-1000.0,0.0001363,2]
[380025786,1755483048916,-1000.0,0.0001363,2]
[380025788,1755483048925,-1000.0,0.0001363,2]
[380025790,1755483048935,-1000.0,0.0001363,2]
[380025791,1755483048944,-1000.0,0.0001363,2]
[380025792,1755483048953,-1000.0,0.0001363,2]
[380025793,1755483048963,-1000.0,0.0001363,2]
[380025794,1755483048972,-1000.0,0.0001363,2]
[380025795,1755483048983,-1000.0,0.0001363,2]
[380025796,1755483048992,-1000.0,0.0001363,2]
[380025797,1755483049002,-1000.0,0.0001363,2]
[380025798,1755483049011,-1000.0,0.0001363,2]
[380025799,1755483049022,-1000.0,0.0001363,2]
[380025800,1755483049033,-1000.0,0.0001363,2]
[380025801,1755483049042,-1000.0,0.0001363,2]
[380025802,1755483049052,-1000.0,0.0001363,2]
[380025803,1755483049062,-1000.0,0.0001363,2]
[380025804,1755483049072,-1000.0,0.0001363,2]
[380025805,1755483049082,-1000.0,0.0001363,2]
[380025806,1755483049092,-1000.0,0.0001363,2]
[380025807,1755483049101,-1000.0,0.0001363,2]
[380025808,1755483049112,-1000.0,0.0001363,2]
[380025809,1755483049122,-1000.0,0.0001363,2]
[380025810,1755483049131,-1000.0,0.0001363,2]
[380025811,1755483049141,-1000.0,0.0001363,2]
[380025812,1755483049151,-1000.0,0.0001363,2]
[380025813,1755483049161,-1000.0,0.0001363,2]
[380025814,1755483049171,-1000.0,0.0001363,2]
[380025815,1755483049181,-1000.0,0.0001363,2]
[380025816,1755483049190,-1000.0,0.0001363,2]
[380025817,1755483049200,-1000.0,0.0001363,2]
[380025818,1755483049209,-1000.0,0.0001363,2]
[380025819,1755483049218,-1000.0,0.0001363,2]
[380025820,1755483049228,-1000.0,0.0001363,2]
[380025821,1755483049237,-1000.0,0.0001363,2]
[380025822,1755483049247,-1000.0,0.0001363,2]
[380025823,1755483049256,-1000.0,0.0001363,2]
[380025824,1755483049268,-1000.0,0.0001363,2]
[380025825,1755483049280,-1000.0,0.0001363,2]
[380025826,1755483049288,-1000.0,0.0001363,2]
[380025827,1755483049299,-1000.0,0.0001363,2]
[380025828,1755483049309,-1000.0,0.0001363,2]
[380025829,1755483049320,-1000.0,0.0001363,2]
[380025830,1755483049329,-1000.0,0.0001363,2]
[380025831,1755483049339,-1000.0,0.0001363,2]
[380025832,1755483049348,-1000.0,0.0001363,2]
[380025833,1755483049357,-1000.0,0.0001363,2]
[380025834,1755483049366,-1000.0,0.0001363,2]
[380025835,1755483049375,-1000.0,0.0001363,2]
[380025836,1755483049385,-1000.0,0.0001363,2]
[380025837,1755483049394,-1000.0,0.0001363,2]
[380025838,1755483049404,-1000.0,0.0001363,2]
[380025839,1755483049413,-1014.2075,0.0001363,2]
[380025840,1755483049422,-170.91960503,0.00013631,2]
[380025841,1755483049431,-207.4,0.00013632,2]
[380025842,1755483049440,-150.0,0.00013633,2]
[380025843,1755483049450,-247.93687122,0.00013633,2]
[380025844,1755483049459,-759.0,0.0001364,2]
[380025845,1755483049468,-471.0,0.0001364,2]
[380025846,1755483049477,-3948.0,0.0001364,2]
[380025847,1755483049486,-500.0,0.0001364,2]
[380025848,1755483049495,-500.0,0.0001364,2]
[380025849,1755483049503,-575.0,0.0001364,2]
[380025850,1755483049512,-150.0,0.00013648,2]
[380025851,1755483049522,-500.0,0.0001365,2]
[380025852,1755483049533,-1000.0,0.00013669,2]
[380025853,1755483049542,-1612.0,0.00013675,2]
[380025854,1755483049551,-150.0,0.00013676,2]
[380025855,1755483049561,-3292.0,0.00013684,2]
[380025856,1755483049571,-446.44,0.00013693,2]
[380025857,1755483049580,-9999.97,0.00013697,2]
[380025858,1755483049589,-150.0,0.00013697,2]
[380025859,1755483049598,-150.0,0.00013697,2]
[380025860,1755483049607,-150.0,0.00013697,2]
[380025861,1755483049616,-150.0,0.00013697,2]
[380025862,1755483049626,-1000.0,0.00013698,2]
[380025863,1755483049635,-1000.0,0.00013698,2]
[380025864,1755483049645,-1000.0,0.00013698,2]
[380025865,1755483049654,-1000.0,0.00013698,2]
[380025866,1755483049663,-1000.0,0.00013698,2]
[380025867,1755483049674,-1000.0,0.00013698,2]
[380025868,1755483049684,-1000.0,0.00013698,2]
[380025869,1755483049692,-1000.0,0.00013698,2]
[380025870,1755483049702,-1000.0,0.00013698,2]
[380025871,1755483049711,-1000.0,0.00013698,2]
[380025872,1755483049721,-1000.0,0.00013698,2]
[380025873,1755483049730,-1000.0,0.00013698,2]
[380025874,1755483049739,-1000.0,0.00013698,2]
[380025875,1755483049749,-1000.0,0.00013698,2]
[380025876,1755483049758,-1000.0,0.00013698,2]
[380025877,1755483049767,-1000.0,0.00013698,2]
[380025878,1755483049776,-1000.0,0.00013698,2]
[380025879,1755483049786,-1000.0,0.00013698,2]
[380025880,1755483049795,-1000.0,0.00013698,2]
[380025881,1755483049805,-1000.0,0.00013698,2]
[380025882,1755483049814,-1000.0,0.00013698,2]
[380025883,1755483049824,-1000.0,0.00013698,2]
[380025884,1755483049833,-1000.0,0.00013698,2]
[380025885,1755483049842,-1000.0,0.00013698,2]
[380025886,1755483049851,-1000.0,0.00013698,2]
[380025887,1755483049861,-1000.0,0.00013698,2]
[380025888,1755483049871,-1000.0,0.00013698,2]
[380025889,1755483049880,-1000.0,0.00013698,2]
[380025890,1755483049889,-435.41908921,0.00013698,2]
[380025891,1755483049898,-400.0,0.00013698,2]
[380025892,1755483049908,-400.0,0.00013698,2]
[380025893,1755483049917,-400.0,0.00013698,2]
[380025894,1755483049926,-400.0,0.00013698,2]
[380025895,1755483049936,-400.0,0.00013698,2]
[380025896,1755483049944,-400.0,0.00013698,2]
[380025897,1755483049954,-391.90493787,0.00013698,2]
[380025898,1755483049963,-400.0,0.00013698,2]
[380025899,1755483049972,-400.0,0.00013698,2]
[380025900,1755483049982,-400.0,0.00013698,2]
[380025901,1755483049991,-400.0,0.00013698,2]
[380025902,1755483050000,-400.0,0.00013698,2]
[380025903,1755483050009,-400.0,0.00013698,2]
[380025904,1755483050018,-400.0,0.00013698,2]
[380025905,1755483050029,-400.0,0.00013698,2]
[380025906,1755483050039,-500.0,0.00013698,2]
[380025907,1755483050047,-522.23,0.00013698,2]
[380025908,1755483050057,-400.0,0.00013698,2]
[380025909,1755483050066,-400.0,0.00013698,2]
[380025910,1755483050074,-400.0,0.00013698,2]
[380025911,1755483050083,-1143.37,0.00013698,2]
[380025912,1755483050092,-400.0,0.00013698,2]
[380025913,1755483050102,-400.0,0.00013698,2]
[380025914,1755483050111,-1293.54,0.00013698,2]
[380025915,1755483050120,-400.0,0.00013698,2]
[380025916,1755483050129,-400.0,0.00013698,2]
[380025917,1755483050138,-400.0,0.00013698,2]
[380025918,1755483050148,-2616.19,0.00013698,2]
[380025919,1755483050157,-400.0,0.00013698,2]
[380025920,1755483050166,-400.0,0.00013698,2]
[380025921,1755483050176,-400.12352535,0.00013698,2]
[380025922,1755483050185,-400.0,0.00013698,2]
[380025923,1755483050193,-400.0,0.00013698,2]
[380025924,1755483050202,-770.45,0.00013698,2]
[380025925,1755483050211,-400.0,0.00013698,2]
[380025926,1755483050220,-400.0,0.00013698,2]
[380025927,1755483050229,-946.73,0.00013698,2]
[380025928,1755483050238,-400.0,0.00013698,2]
[380025929,1755483050248,-400.0,0.00013698,2]
[380025930,1755483050259,-400.0,0.00013698,2]
[380025931,1755483050268,-400.0,0.00013698,2]
[380025932,1755483050277,-486.69,0.00013698,2]
[380025933,1755483050287,-1958.69,0.00013698,2]
[380025934,1755483050297,-400.0,0.00013698,2]
[380025935,1755483050306,-446.91,0.00013698,2]
[380025936,1755483050315,-400.0,0.00013698,2]
[380025937,1755483050324,-400.0,0.00013698,2]
[380025938,1755483050334,-529.28,0.00013698,2]
[380025939,1755483050343,-769.86,0.00013698,2]
[380025940,1755483050353,-400.0,0.00013698,2]
[380025941,1755483050362,-400.0,0.00013698,2]
[380025942,1755483050371,-570.49,0.00013698,2]
[380025943,1755483050380,-400.0,0.00013698,2]
[380025944,1755483050390,-400.0,0.00013698,2]
[380025945,1755483050399,-526.3,0.00013698,2]
[380025946,1755483050409,-400.0,0.00013698,2]
[380025947,1755483050418,-400.0,0.00013698,2]
[380025948,1755483050427,-400.0,0.00013698,2]
[380025949,1755483050436,-400.0,0.00013698,2]
[380025950,1755483050445,-541.6,0.00013698,2]
[380025951,1755483050455,-400.0,0.00013698,2]
[380025952,1755483050464,-400.0,0.00013698,2]
[380025953,1755483050473,-400.0,0.00013698,2]
[380025954,1755483050483,-400.0,0.00013698,2]
[380025955,1755483050493,-1197.78,0.00013698,2]
[380025956,1755483050503,-599.57,0.00013698,2]
[380025957,1755483050512,-400.0,0.00013698,2]
[380025958,1755483050521,-400.0,0.00013698,2]
[380025959,1755483050531,-400.0,0.00013698,2]
[380025960,1755483050542,-400.0,0.00013698,2]
[380025961,1755483050550,-511.2,0.00013698,2]
[380025962,1755483050559,-400.0,0.00013698,2]
[380025963,1755483050568,-400.0,0.00013698,2]
[380025964,1755483050578,-400.0,0.00013698,2]
[380025965,1755483050587,-607.43,0.00013698,2]
[380025966,1755483050595,-300.0,0.00013698,2]
[380025967,1755483050605,-1393.22,0.00013698,2]
[380025968,1755483050615,-500.0,0.00013698,2]
[380025969,1755483050624,-400.0,0.00013698,2]
[380025970,1755483050635,-500.0,0.00013698,2]
[380025971,1755483050645,-500.0,0.00013698,2]
[380025972,1755483050655,-500.0,0.00013698,2]
[380025973,1755483050664,-500.0,0.00013698,2]
[380025974,1755483050674,-500.0,0.00013698,2]
[380025975,1755483050683,-628.09927623,0.00013698,2]
[380025976,1755483050693,-400.0,0.00013698,2]
[380025977,1755483050702,-400.0,0.00013698,2]
[380025978,1755483050711,-400.0,0.00013698,2]
[380025979,1755483050721,-450.21,0.00013698,2]
[380025980,1755483050730,-400.0,0.00013698,2]
[380025981,1755483050741,-423.29,0.00013698,2]
[380025982,1755483050751,-400.0,0.00013698,2]
[380025983,1755483050760,-400.0,0.00013698,2]
[380025984,1755483050769,-400.0,0.00013698,2]
[380025985,1755483050781,-2067.2,0.00013698,2]
[380025986,1755483050790,-1151.43,0.00013698,2]
[380025987,1755483050800,-400.0,0.00013698,2]
[380025988,1755483050809,-1226.56,0.00013698,2]
[380025989,1755483050819,-400.0,0.00013698,2]
[380025990,1755483050828,-400.0,0.00013698,2]
[380025991,1755483050838,-400.0,0.00013698,2]
[380025992,1755483050847,-400.0,0.00013698,2]
[380025993,1755483050857,-465.45,0.00013698,2]
[380025994,1755483050867,-400.0,0.00013698,2]
[380025995,1755483050876,-504.00042226,0.00013698,2]
[380025996,1755483050885,-400.0,0.00013698,2]
[380025997,1755483050894,-400.0,0.00013698,2]
[380025998,1755483050903,-400.0,0.00013698,2]
[380025999,1755483050912,-400.0,0.00013698,2]
[380026000,1755483050922,-400.0,0.00013698,2]
[380026001,1755483050931,-400.0,0.00013698,2]
[380026002,1755483050940,-400.0,0.00013698,2]
[380026003,1755483050949,-400.0,0.00013698,2]
[380026004,1755483050958,-400.0,0.00013698,2]
[380026005,1755483050967,-400.0,0.00013698,2]
[380026006,1755483050976,-400.0,0.00013698,2]
[380026007,1755483050986,-400.0,0.00013698,2]
[380026008,1755483050995,-982.13,0.00013698,2]
[380026009,1755483051005,-400.0,0.00013698,2]
[380026010,1755483051014,-778.27,0.00013698,2]
[380026011,1755483051024,-400.0,0.00013698,2]
[380026012,1755483051034,-400.0,0.00013698,2]
[380026013,1755483051044,-400.0,0.00013698,2]
[380026014,1755483051053,-360.58463813,0.00013698,2]
[380026015,1755483051063,-719.13,0.00013698,2]
[380026016,1755483051073,-595.91,0.00013698,2]
[380026017,1755483051082,-400.0,0.00013698,2]
[380026018,1755483051096,-500.0,0.00013698,2]
[380026019,1755483051105,-500.0,0.00013698,2]
[380026020,1755483051115,-501.28910075,0.00013698,2]
[380026021,1755483051125,-935.59,0.00013698,2]
[380026022,1755483051134,-400.0,0.00013698,2]
[380026023,1755483051144,-400.0,0.00013698,2]
[380026024,1755483051153,-400.0,0.00013698,2]
[380026025,1755483051162,-874.09,0.00013698,2]
[380026026,1755483051172,-532.09,0.00013698,2]
[380026027,1755483051181,-400.0,0.00013698,2]
[380026028,1755483051190,-400.0,0.00013698,2]
[380026029,1755483051199,-400.0,0.00013698,2]
[380026030,1755483051209,-500.0,0.00013698,2]
[380026031,1755483051219,-500.0,0.00013698,2]
[380026032,1755483051228,-500.0,0.00013698,2]
[380026033,1755483051238,-500.0,0.00013698,2]
[380026034,1755483051247,-500.0,0.00013698,2]
[380026035,1755483051257,-500.0,0.00013698,2]
[380026036,1755483051268,-500.0,0.00013698,2]
[380026037,1755483051277,-500.0,0.00013698,2]
[380026038,1755483051289,-400.0,0.00013698,2]
[380026039,1755483051298,-541.14,0.00013698,2]
[380026040,1755483051309,-500.0,0.00013698,2]
[380026041,1755483051318,-500.0,0.00013698,2]
[380026042,1755483051327,-500.0,0.00013698,2]
[380026043,1755483051338,-500.0,0.00013698,2]
[380026044,1755483051347,-500.0,0.00013698,2]
[380026045,1755483051356,-505.15312736,0.00013698,2]
[380026046,1755483051365,-400.0,0.00013698,2]
[380026047,1755483051374,-958.9,0.00013698,2]
[380026048,1755483051383,-683.61,0.00013698,2]
[380026049,1755483051392,-400.0,0.00013698,2]
[380026050,1755483051402,-400.0,0.00013698,2]
[380026051,1755483051411,-695.34,0.00013698,2]
[380026052,1755483051420,-400.0,0.00013698,2]
[380026053,1755483051431,-400.0,0.00013698,2]
[380026054,1755483051440,-400.0,0.00013698,2]
[380026055,1755483051450,-915.51,0.00013698,2]
[380026056,1755483051458,-400.0,0.00013698,2]
[380026057,1755483051467,-400.0,0.00013698,2]
[380026058,1755483051476,-400.0,0.00013698,2]
[380026059,1755483051485,-2381.09,0.00013698,2]
[380026060,1755483051494,-400.0,0.00013698,2]
[380026061,1755483051503,-1601.91,0.00013698,2]
[380026062,1755483051511,-400.0,0.00013698,2]
[380026063,1755483051520,-803.16,0.00013698,2]
[380026064,1755483051531,-400.0,0.00013698,2]
[380026065,1755483051541,-1030.78,0.00013698,2]
[380026066,1755483051550,-618.76,0.00013698,2]
[380026067,1755483051558,-400.0,0.00013698,2]
[380026068,1755483051567,-904.27,0.00013698,2]
[380026069,1755483051576,-400.0,0.00013698,2]
[380026070,1755483051586,-400.0,0.00013698,2]
[380026071,1755483051594,-522.88,0.00013698,2]
[380026072,1755483051604,-400.0,0.00013698,2]
[380026073,1755483051613,-400.0,0.00013698,2]
[380026074,1755483051623,-400.0,0.00013698,2]
[380026075,1755483051634,-400.0,0.00013698,2]
[380026076,1755483051645,-1789.34,0.00013698,2]
[380026077,1755483051655,-400.0,0.00013698,2]
[380026078,1755483051664,-400.0,0.00013698,2]
[380026079,1755483051673,-400.0,0.00013698,2]
[380026080,1755483051682,-400.0,0.00013698,2]
[380026081,1755483051690,-400.0,0.00013698,2]
[380026082,1755483051700,-400.0,0.00013698,2]
[380026083,1755483051708,-400.0,0.00013698,2]
[380026084,1755483051717,-400.0,0.00013698,2]
[380026085,1755483051727,-1157.25,0.00013698,2]
[380026086,1755483051735,-480.64,0.00013698,2]
[380026087,1755483051745,-433.88,0.00013698,2]
[380026088,1755483051754,-400.0,0.00013698,2]
[380026089,1755483051763,-453.49,0.00013698,2]
[380026090,1755483051772,-400.0,0.00013698,2]
[380026091,1755483051784,-507.59,0.00013698,2]
[380026092,1755483051793,-502.89,0.00013698,2]
[380026093,1755483051802,-1721.47,0.00013698,2]
[380026094,1755483051812,-400.0,0.00013698,2]
[380026095,1755483051821,-400.0,0.00013698,2]
[380026096,1755483051830,-400.0,0.00013698,2]
[380026097,1755483051839,-400.0,0.00013698,2]
[380026098,1755483051849,-400.0,0.00013698,2]
[380026099,1755483051858,-400.0,0.00013698,2]
[380026100,1755483051867,-400.0,0.00013698,2]
[380026101,1755483051876,-400.0,0.00013698,2]
[380026102,1755483051885,-1865.01,0.00013698,2]
[380026103,1755483051895,-400.0,0.00013698,2]
[380026104,1755483051904,-402.23113298,0.00013698,2]
[380026105,1755483051913,-400.0,0.00013698,2]
[380026106,1755483051922,-400.0,0.00013698,2]
[380026107,1755483051931,-400.0,0.00013698,2]
[380026108,1755483051941,-400.0,0.00013698,2]
[380026109,1755483051951,-400.0,0.00013698,2]
[380026110,1755483051960,-400.0,0.00013698,2]
[380026111,1755483051970,-400.0,0.00013698,2]
[380026112,1755483051979,-541.1317576,0.00013698,2]
[380026113,1755483052119,-625.36,0.00013698,2]
[380026114,1755483052129,-1401.38,0.00013698,2]
[380026115,1755483052138,-400.0,0.00013698,2]
[380026116,1755483052148,-400.0,0.00013698,2]
[380026117,1755483052157,-400.0,0.00013698,2]
[380026118,1755483052166,-400.0,0.00013698,2]
[380026119,1755483052175,-400.0,0.00013698,2]
[380026120,1755483052185,-400.0,0.00013698,2]
[380026121,1755483052194,-642.9,0.00013698,2]
[380026122,1755483052203,-400.0,0.00013698,2]
[380026123,1755483052213,-400.0,0.00013698,2]
[380026124,1755483052222,-730.63,0.00013698,2]
[380026125,1755483052231,-400.0,0.00013698,2]
[380026126,1755483052240,-400.0,0.00013698,2]
[380026127,1755483052252,-400.0,0.00013698,2]
[380026128,1755483052261,-438.65696703,0.00013698,2]
[380026129,1755483052270,-400.0,0.00013698,2]
[380026130,1755483052281,-1914.94,0.00013698,2]
[380026131,1755483052291,-400.0,0.00013698,2]
[380026132,1755483052300,-400.0,0.00013698,2]
[380026133,1755483052309,-400.0,0.00013698,2]
[380026134,1755483052318,-400.0,0.00013698,2]
[380026135,1755483052328,-400.0,0.00013698,2]